[Event "*** Titled Tuesday Blitz"]
[Site "Chess.com"]
[Date "2020.12.01"]
[Round "9"]
[White "djano"]
[Black "vovachesss"]
[Result "0-1"]
[WhiteElo "2457"]
[BlackElo "2618"]
[TimeControl "180+1"]
[EndTime "11:42:59 PST"]
[Termination "vovachesss won by resignation"]

1. e4 {[%clk 0:03:00.9]} 1... e6 {[%clk 0:02:59.9]} 2. d4 {[%clk 0:03:00.3]}
2... Ke7 {[%clk 0:03:00.8]} 3. Bd3 {[%clk 0:02:58.6]} 3... Ke8 {[%clk
0:03:01.7]} 4. Nc3 {[%clk 0:02:57.4]} 4... d6 {[%clk 0:03:01.2]} 5. f4 {[%clk
0:02:55.2]} 5... g6 {[%clk 0:03:00.7]} 6. Nf3 {[%clk 0:02:54.8]} 6... Bg7 {[%clk
0:03:01.4]} 7. O-O {[%clk 0:02:54.5]} 7... c5 {[%clk 0:03:01.9]} 8. Be3 {[%clk
0:02:49]} 8... cxd4 {[%clk 0:02:58.1]} 9. Nxd4 {[%clk 0:02:46.9]} 9... Nf6
{[%clk 0:02:57.1]} 10. Qf3 {[%clk 0:02:38.1]} 10... e5 {[%clk 0:02:34.6]} 11.
Nb3 {[%clk 0:02:26.3]} 11... Nc6 {[%clk 0:02:29.3]} 12. Rad1 {[%clk 0:02:22.9]}
12... Bg4 {[%clk 0:02:28.7]} 13. Qg3 {[%clk 0:02:21.7]} 13... Bxd1 {[%clk
0:02:28.9]} 14. Rxd1 {[%clk 0:02:22.6]} 14... Nh5 {[%clk 0:02:29.1]} 15. Qf2
{[%clk 0:02:13.8]} 15... Nxf4 {[%clk 0:02:28.7]} 16. Bxf4 {[%clk 0:02:14.7]}
16... exf4 {[%clk 0:02:28.9]} 17. Qxf4 {[%clk 0:02:15.6]} 17... Bxc3 {[%clk
0:02:19.5]} 18. bxc3 {[%clk 0:02:12.9]} 18... Qe7 {[%clk 0:02:19.8]} 19. Bc4
{[%clk 0:02:08]} 19... Ne5 {[%clk 0:02:15.9]} 20. Bd5 {[%clk 0:01:53.4]} 20...
h5 {[%clk 0:02:08.7]} 21. Nd4 {[%clk 0:01:48.6]} 21... Kf8 {[%clk 0:02:03.1]}
22. Rf1 {[%clk 0:01:41.2]} 22... Kg7 {[%clk 0:02:01.3]} 23. Qg3 {[%clk
0:01:41.4]} 23... h4 {[%clk 0:01:52.5]} 24. Qe3 {[%clk 0:01:33.1]} 24... Rh5
{[%clk 0:01:46.1]} 25. Kh1 {[%clk 0:01:27.4]} 25... Rc8 {[%clk 0:01:39.4]} 26.
h3 {[%clk 0:01:19.5]} 26... Rg5 {[%clk 0:01:35.7]} 27. Qf4 {[%clk 0:01:01]}
27... Rxc3 {[%clk 0:01:30.7]} 28. Qxh4 {[%clk 0:00:55.2]} 28... Rcg3 {[%clk
0:01:08.1]} 29. Rf2 {[%clk 0:00:54.1]} 29... Qc7 {[%clk 0:00:51]} 30. c4 {[%clk
0:00:51]} 30... Qb6 {[%clk 0:00:40.1]} 31. Ne2 {[%clk 0:00:31.1]} 31... Qxf2
{[%clk 0:00:38.5]} 0-1

[Event "*** Titled Tuesday Blitz"]
[Site "Chess.com"]
[Date "2020.12.01"]
[Round "9"]
[White "yourstrulyme"]
[Black "Marianov_Podstavnikov"]
[Result "1-0"]
[WhiteElo "2467"]
[BlackElo "2267"]
[TimeControl "180+1"]
[EndTime "11:43:00 PST"]
[Termination "yourstrulyme won by resignation"]

1. e4 {[%clk 0:03:00.9]} 1... c5 {[%clk 0:02:59.3]} 2. Nf3 {[%clk 0:02:59.7]}
2... e6 {[%clk 0:02:59.7]} 3. d4 {[%clk 0:02:59.7]} 3... cxd4 {[%clk 0:03:00.6]}
4. Nxd4 {[%clk 0:03:00.4]} 4... Nc6 {[%clk 0:03:01.2]} 5. Nc3 {[%clk 0:02:59.6]}
5... a6 {[%clk 0:03:01.3]} 6. Nxc6 {[%clk 0:02:58.2]} 6... bxc6 {[%clk
0:03:01.2]} 7. Qf3 {[%clk 0:02:58.9]} 7... d5 {[%clk 0:02:53.3]} 8. Qg3 {[%clk
0:02:20.1]} 8... h5 {[%clk 0:02:50.1]} 9. h4 {[%clk 0:02:18.8]} 9... d4 {[%clk
0:02:48.7]} 10. Nb1 {[%clk 0:02:15.9]} 10... Nf6 {[%clk 0:02:48.6]} 11. Nd2
{[%clk 0:02:13.3]} 11... Ng4 {[%clk 0:02:01.6]} 12. Nc4 {[%clk 0:02:07.8]} 12...
Bb4+ {[%clk 0:01:43.9]} 13. Kd1 {[%clk 0:01:46.8]} 13... Qf6 {[%clk 0:01:33.1]}
14. f3 {[%clk 0:01:37.1]} 14... Ne3+ {[%clk 0:01:28.6]} 15. Bxe3 {[%clk
0:01:32.2]} 15... dxe3 {[%clk 0:01:28.8]} 16. e5 {[%clk 0:01:25.9]} 16... Qd8+
{[%clk 0:01:25.6]} 17. Bd3 {[%clk 0:01:25.6]} 17... a5 {[%clk 0:01:17.8]} 18.
Qxg7 {[%clk 0:01:19.2]} 18... Kd7 {[%clk 0:01:10.2]} 19. Qxf7+ {[%clk
0:01:15.5]} 19... Be7 {[%clk 0:01:07.4]} 20. Ke2 {[%clk 0:01:11.1]} 20... Rg8
{[%clk 0:01:03.6]} 21. Nxe3 {[%clk 0:00:21.6]} 21... Ba6 {[%clk 0:01:02.4]} 22.
Rad1 {[%clk 0:00:20.4]} 22... Kc7 {[%clk 0:00:33.6]} 23. Bxa6 {[%clk 0:00:19.2]}
23... Qf8 {[%clk 0:00:32.9]} 24. Qxe6 {[%clk 0:00:17.3]} 24... Rd8 {[%clk
0:00:29.6]} 25. Rxd8 {[%clk 0:00:14.2]} 25... Qxd8 {[%clk 0:00:29.5]} 26. Rd1
{[%clk 0:00:14.8]} 1-0

[Event "*** Titled Tuesday Blitz"]
[Site "Chess.com"]
[Date "2020.12.01"]
[Round "9"]
[White "Parhamov"]
[Black "NewBornNow"]
[Result "1-0"]
[WhiteElo "2914"]
[BlackElo "2711"]
[TimeControl "180+1"]
[EndTime "11:43:01 PST"]
[Termination "Parhamov won by checkmate"]

1. e4 {[%clk 0:03:00.9]} 1... c5 {[%clk 0:02:57.9]} 2. Nc3 {[%clk 0:03:01.1]}
2... d6 {[%clk 0:02:57.4]} 3. Nf3 {[%clk 0:03:01]} 3... Nf6 {[%clk 0:02:56.4]}
4. h3 {[%clk 0:03:01.2]} 4... g6 {[%clk 0:02:55.7]} 5. g4 {[%clk 0:03:00.3]}
5... Bg7 {[%clk 0:02:55.4]} 6. Bg2 {[%clk 0:03:00.8]} 6... O-O {[%clk
0:02:54.6]} 7. d4 {[%clk 0:03:00.9]} 7... cxd4 {[%clk 0:02:52.3]} 8. Nxd4 {[%clk
0:03:01.8]} 8... e5 {[%clk 0:02:43.4]} 9. Nde2 {[%clk 0:02:59.8]} 9... Nc6
{[%clk 0:02:40.5]} 10. Be3 {[%clk 0:02:55.8]} 10... Be6 {[%clk 0:02:39.1]} 11.
Qd2 {[%clk 0:02:55.7]} 11... Qa5 {[%clk 0:02:32.3]} 12. O-O {[%clk 0:02:52.9]}
12... Rfd8 {[%clk 0:02:26.1]} 13. Rad1 {[%clk 0:02:47.3]} 13... h5 {[%clk
0:02:13.2]} 14. g5 {[%clk 0:02:46.9]} 14... Nd7 {[%clk 0:02:06.9]} 15. b3 {[%clk
0:02:29]} 15... Nc5 {[%clk 0:01:49]} 16. Nd5 {[%clk 0:02:25.3]} 16... Qxd2
{[%clk 0:01:47.1]} 17. Rxd2 {[%clk 0:02:25.1]} 17... Bxd5 {[%clk 0:01:46]} 18.
exd5 {[%clk 0:02:25]} 18... Ne7 {[%clk 0:01:40.8]} 19. Bxc5 {[%clk 0:02:24.2]}
19... dxc5 {[%clk 0:01:40.4]} 20. d6 {[%clk 0:02:24.6]} 20... Nf5 {[%clk
0:01:40.2]} 21. d7 {[%clk 0:02:08.3]} 21... Rab8 {[%clk 0:01:38.4]} 22. Rfd1
{[%clk 0:01:59.4]} 22... h4 {[%clk 0:01:15.1]} 23. Nc3 {[%clk 0:01:57.7]} 23...
Bf8 {[%clk 0:01:01.2]} 24. Ne4 {[%clk 0:01:57.6]} 24... Nd4 {[%clk 0:00:57.2]}
25. c3 {[%clk 0:01:55.9]} 25... Ne6 {[%clk 0:00:55.9]} 26. Rd5 {[%clk
0:01:51.2]} 26... Bg7 {[%clk 0:00:36]} 27. Bf3 {[%clk 0:01:10.3]} 27... b6
{[%clk 0:00:31.7]} 28. Bg4 {[%clk 0:01:10.1]} 28... Nf4 {[%clk 0:00:31.1]} 29.
Rd6 {[%clk 0:01:10]} 29... Bf8 {[%clk 0:00:31.1]} 30. Rc6 {[%clk 0:01:07.7]}
30... Be7 {[%clk 0:00:29.1]} 31. Rc8 {[%clk 0:01:06.4]} 31... Kg7 {[%clk
0:00:28.1]} 32. Nf6 {[%clk 0:01:02.7]} 32... Rb7 {[%clk 0:00:22.2]} 33. Rd6
{[%clk 0:00:56.1]} 33... Bxd6 {[%clk 0:00:20.1]} 34. Rxd8 {[%clk 0:00:55.9]}
34... Nxh3+ {[%clk 0:00:19.3]} 35. Bxh3 {[%clk 0:00:55.6]} 35... Be7 {[%clk
0:00:19.4]} 36. Rg8# {[%clk 0:00:55.6]} 1-0

[Event "*** Titled Tuesday Blitz"]
[Site "Chess.com"]
[Date "2020.12.01"]
[Round "9"]
[White "Keures"]
[Black "SanchezKelvin"]
[Result "0-1"]
[WhiteElo "2248"]
[BlackElo "2466"]
[TimeControl "180+1"]
[EndTime "11:43:06 PST"]
[Termination "SanchezKelvin won by resignation"]

1. d4 {[%clk 0:02:50.6]} 1... Nf6 {[%clk 0:02:59.3]} 2. c4 {[%clk 0:02:49.3]}
2... c6 {[%clk 0:02:58.5]} 3. Nc3 {[%clk 0:02:48.8]} 3... d5 {[%clk 0:02:57.1]}
4. Bg5 {[%clk 0:02:49]} 4... dxc4 {[%clk 0:02:55.5]} 5. a4 {[%clk 0:02:48.5]}
5... Nd5 {[%clk 0:02:54.8]} 6. e4 {[%clk 0:02:45.2]} 6... Nxc3 {[%clk 0:02:49]}
7. bxc3 {[%clk 0:02:46.1]} 7... h6 {[%clk 0:02:43.6]} 8. Bh4 {[%clk 0:02:38.2]}
8... b5 {[%clk 0:02:36.9]} 9. e5 {[%clk 0:02:35.1]} 9... Be6 {[%clk 0:02:24.8]}
10. axb5 {[%clk 0:02:32.7]} 10... cxb5 {[%clk 0:02:24.5]} 11. Be2 {[%clk
0:02:29.3]} 11... Nc6 {[%clk 0:02:20.5]} 12. Nf3 {[%clk 0:02:23.5]} 12... a6
{[%clk 0:02:19.3]} 13. O-O {[%clk 0:02:22.3]} 13... Bd5 {[%clk 0:02:08.4]} 14.
Nd2 {[%clk 0:02:21]} 14... Qd7 {[%clk 0:02:07.4]} 15. f4 {[%clk 0:02:04]} 15...
e6 {[%clk 0:02:05.9]} 16. Bg4 {[%clk 0:01:49]} 16... Be7 {[%clk 0:01:26]} 17.
Qe1 {[%clk 0:01:47.8]} 17... Bxh4 {[%clk 0:01:21.9]} 18. Qxh4 {[%clk 0:01:46.4]}
18... Ne7 {[%clk 0:01:21.9]} 19. Qh3 {[%clk 0:01:23.1]} 19... O-O {[%clk
0:01:14.7]} 20. f5 {[%clk 0:01:22.7]} 20... exf5 {[%clk 0:01:13.8]} 21. Bxf5
{[%clk 0:01:22.6]} 21... Nxf5 {[%clk 0:01:13]} 22. Qxf5 {[%clk 0:01:22.7]} 22...
Qxf5 {[%clk 0:01:11.6]} 23. Rxf5 {[%clk 0:01:23.6]} 23... a5 {[%clk 0:01:09.8]}
24. Rf4 {[%clk 0:00:54.5]} 24... b4 {[%clk 0:01:07.5]} 25. Ne4 {[%clk 0:00:54]}
25... Bxe4 {[%clk 0:01:02.6]} 26. Rxe4 {[%clk 0:00:53.9]} 26... b3 {[%clk
0:01:02.4]} 27. Ree1 {[%clk 0:00:42.7]} 27... a4 {[%clk 0:01:02.2]} 28. Ra3
{[%clk 0:00:31.2]} 28... Rfb8 {[%clk 0:01:01.1]} 29. Rb1 {[%clk 0:00:29.8]}
29... b2 {[%clk 0:01:01.2]} 30. Kf2 {[%clk 0:00:30.1]} 30... Rb3 {[%clk
0:00:46.2]} 31. Ra2 {[%clk 0:00:30]} 31... a3 {[%clk 0:00:45.6]} 32. Ke2 {[%clk
0:00:29.2]} 32... Rxc3 {[%clk 0:00:33.4]} 33. Rbxb2 {[%clk 0:00:27]} 33... axb2
{[%clk 0:00:33.1]} 34. Rxa8+ {[%clk 0:00:27.1]} 34... Kh7 {[%clk 0:00:32.5]} 0-1

[Event "*** Titled Tuesday Blitz"]
[Site "Chess.com"]
[Date "2020.12.01"]
[Round "9"]
[White "GothamChess"]
[Black "Bigfish1995"]
[Result "0-1"]
[WhiteElo "2577"]
[BlackElo "3032"]
[TimeControl "180+1"]
[EndTime "11:43:08 PST"]
[Termination "Bigfish1995 won on time"]

1. e4 {[%clk 0:02:50.6]} 1... c5 {[%clk 0:02:58.9]} 2. a3 {[%clk 0:02:46.6]}
2... d5 {[%clk 0:02:55.7]} 3. exd5 {[%clk 0:02:45.8]} 3... Qxd5 {[%clk
0:02:55.8]} 4. Nf3 {[%clk 0:02:46]} 4... g6 {[%clk 0:02:47.9]} 5. Nc3 {[%clk
0:02:45.7]} 5... Qd8 {[%clk 0:02:46.3]} 6. Bb5+ {[%clk 0:02:45]} 6... Bd7 {[%clk
0:02:45.7]} 7. Bxd7+ {[%clk 0:02:43.5]} 7... Nxd7 {[%clk 0:02:42.7]} 8. d4
{[%clk 0:02:42.4]} 8... Bg7 {[%clk 0:02:38.4]} 9. Be3 {[%clk 0:02:38.3]} 9...
cxd4 {[%clk 0:02:36.4]} 10. Bxd4 {[%clk 0:02:38.2]} 10... Ngf6 {[%clk 0:02:37]}
11. O-O {[%clk 0:02:36]} 11... O-O {[%clk 0:02:37]} 12. Re1 {[%clk 0:02:36]}
12... a6 {[%clk 0:02:34.1]} 13. Qd3 {[%clk 0:02:28.5]} 13... Rc8 {[%clk
0:02:31.7]} 14. Rad1 {[%clk 0:02:26.4]} 14... e6 {[%clk 0:02:30.8]} 15. h3
{[%clk 0:02:07.1]} 15... Qc7 {[%clk 0:02:29.9]} 16. Bxf6 {[%clk 0:01:40.1]}
16... Nxf6 {[%clk 0:02:29.3]} 17. Qd6 {[%clk 0:01:40.8]} 17... Qxd6 {[%clk
0:02:20]} 18. Rxd6 {[%clk 0:01:40.6]} 18... Rfd8 {[%clk 0:02:20.6]} 19. Red1
{[%clk 0:01:39.6]} 19... Rxd6 {[%clk 0:02:20.4]} 20. Rxd6 {[%clk 0:01:40.5]}
20... Bf8 {[%clk 0:02:15.8]} 21. Rb6 {[%clk 0:01:21.1]} 21... Rc7 {[%clk
0:02:15.1]} 22. Na4 {[%clk 0:01:14.9]} 22... Nd5 {[%clk 0:02:13.3]} 23. Rb3
{[%clk 0:01:12.9]} 23... b5 {[%clk 0:02:12.6]} 24. Nc3 {[%clk 0:01:09.9]} 24...
Nb6 {[%clk 0:02:12.1]} 25. Ne4 {[%clk 0:01:06.3]} 25... Rxc2 {[%clk 0:02:11.2]}
26. Nf6+ {[%clk 0:01:06.6]} 26... Kg7 {[%clk 0:02:06.5]} 27. Ne8+ {[%clk
0:01:06.9]} 27... Kh6 {[%clk 0:02:06.9]} 28. Ne5 {[%clk 0:00:58.9]} 28... g5
{[%clk 0:01:34.1]} 29. Nxf7+ {[%clk 0:00:46.8]} 29... Kg6 {[%clk 0:01:34.3]} 30.
Rf3 {[%clk 0:00:33.2]} 30... Nd7 {[%clk 0:01:23.8]} 31. Nh8+ {[%clk 0:00:23.4]}
31... Kh6 {[%clk 0:01:21.4]} 32. Nf7+ {[%clk 0:00:19.2]} 32... Kh5 {[%clk
0:01:16.9]} 33. g4+ {[%clk 0:00:15.6]} 33... Kh4 {[%clk 0:01:17.4]} 34. Kg2
{[%clk 0:00:05.6]} 34... Rxb2 {[%clk 0:01:09.9]} 35. Nf6 {[%clk 0:00:03.2]}
35... Nxf6 {[%clk 0:01:00.3]} 36. Rxf6 {[%clk 0:00:04.1]} 36... Bg7 {[%clk
0:00:58.3]} 37. Rf3 {[%clk 0:00:02.3]} 37... h5 {[%clk 0:00:57.9]} 38. Rg3
{[%clk 0:00:01.9]} 38... Bd4 {[%clk 0:00:57.7]} 0-1

[Event "*** Titled Tuesday Blitz"]
[Site "Chess.com"]
[Date "2020.12.01"]
[Round "9"]
[White "Blitzking642"]
[Black "TheCairnTerrier"]
[Result "1-0"]
[WhiteElo "2235"]
[BlackElo "2147"]
[TimeControl "180+1"]
[EndTime "11:43:08 PST"]
[Termination "Blitzking642 won on time"]

1. e4 {[%clk 0:03:00.9]} 1... c5 {[%clk 0:02:59.7]} 2. Nf3 {[%clk 0:03:00.1]}
2... e6 {[%clk 0:02:59.4]} 3. d3 {[%clk 0:02:58.6]} 3... Nc6 {[%clk 0:02:55.2]}
4. g3 {[%clk 0:02:58.2]} 4... d5 {[%clk 0:02:53.3]} 5. Nbd2 {[%clk 0:02:57.4]}
5... Nf6 {[%clk 0:02:52.9]} 6. Bg2 {[%clk 0:02:57]} 6... Be7 {[%clk 0:02:53]} 7.
O-O {[%clk 0:02:57]} 7... O-O {[%clk 0:02:53.5]} 8. Re1 {[%clk 0:02:54]} 8... a6
{[%clk 0:02:49.4]} 9. e5 {[%clk 0:02:53.7]} 9... Nd7 {[%clk 0:02:49]} 10. Nf1
{[%clk 0:02:51.8]} 10... b5 {[%clk 0:02:49]} 11. h4 {[%clk 0:02:51.5]} 11... Bb7
{[%clk 0:02:38.8]} 12. N1h2 {[%clk 0:02:50.6]} 12... b4 {[%clk 0:02:34.5]} 13.
h5 {[%clk 0:02:48.2]} 13... h6 {[%clk 0:02:33.9]} 14. Ng4 {[%clk 0:02:45.4]}
14... Re8 {[%clk 0:02:33.1]} 15. Bf4 {[%clk 0:02:37.9]} 15... Bf8 {[%clk
0:02:32.5]} 16. Qd2 {[%clk 0:02:19.9]} 16... Qe7 {[%clk 0:02:00.4]} 17. Ne3
{[%clk 0:02:18.6]} 17... a5 {[%clk 0:01:56.7]} 18. g4 {[%clk 0:02:18.4]} 18...
Qd8 {[%clk 0:01:23.8]} 19. g5 {[%clk 0:02:14.1]} 19... hxg5 {[%clk 0:01:24.7]}
20. Bxg5 {[%clk 0:02:13.9]} 20... Be7 {[%clk 0:01:22.1]} 21. Ng4 {[%clk
0:02:07.5]} 21... Nd4 {[%clk 0:00:56.9]} 22. Bxe7 {[%clk 0:02:04.6]} 22... Nxf3+
{[%clk 0:00:48]} 23. Bxf3 {[%clk 0:02:03.5]} 23... Qxe7 {[%clk 0:00:48.9]} 24.
h6 {[%clk 0:01:58.5]} 24... g6 {[%clk 0:00:42.5]} 25. Kg2 {[%clk 0:01:53.8]}
25... Kh7 {[%clk 0:00:31.6]} 26. Rh1 {[%clk 0:01:50.9]} 26... Rab8 {[%clk
0:00:30.5]} 27. Qf4 {[%clk 0:01:48.2]} 27... d4 {[%clk 0:00:29.1]} 28. Nh2
{[%clk 0:01:45.3]} 28... Bxf3+ {[%clk 0:00:28.1]} 29. Nxf3 {[%clk 0:01:46.2]}
29... f6 {[%clk 0:00:24.5]} 30. Rae1 {[%clk 0:01:40.1]} 30... Nxe5 {[%clk
0:00:21]} 31. Nxe5 {[%clk 0:01:30.4]} 31... fxe5 {[%clk 0:00:21.9]} 32. Rxe5
{[%clk 0:01:23.3]} 32... Rf8 {[%clk 0:00:20.5]} 33. Qe4 {[%clk 0:01:23]} 33...
Rf5 {[%clk 0:00:15.2]} 34. Rxe6 {[%clk 0:01:11.8]} 34... Qg5+ {[%clk 0:00:06.4]}
35. Kf1 {[%clk 0:01:12.2]} 35... Rxf2+ {[%clk 0:00:04.9]} 36. Kxf2 {[%clk
0:01:06.9]} 36... Rf8+ {[%clk 0:00:05.4]} 37. Ke2 {[%clk 0:01:05.6]} 37... Qg3
{[%clk 0:00:03.4]} 38. Re7+ {[%clk 0:01:03.6]} 38... Kh8 {[%clk 0:00:03.2]} 39.
Qe5+ {[%clk 0:00:57.8]} 39... Qxe5+ {[%clk 0:00:03.8]} 40. Rxe5 {[%clk 0:00:58]}
1-0

[Event "*** Titled Tuesday Blitz"]
[Site "Chess.com"]
[Date "2020.12.01"]
[Round "9"]
[White "ObidObad"]
[Black "ehrenfeld"]
[Result "0-1"]
[WhiteElo "2299"]
[BlackElo "2482"]
[TimeControl "180+1"]
[EndTime "11:43:12 PST"]
[Termination "ehrenfeld won by resignation"]

1. e4 {[%clk 0:02:56.2]} 1... d6 {[%clk 0:02:59.5]} 2. Ne2 {[%clk 0:02:57.1]}
2... g6 {[%clk 0:02:58.7]} 3. Nbc3 {[%clk 0:02:57.1]} 3... Bg7 {[%clk
0:02:58.7]} 4. g3 {[%clk 0:02:57.7]} 4... Nf6 {[%clk 0:02:57.9]} 5. Bg2 {[%clk
0:02:58.3]} 5... O-O {[%clk 0:02:57.8]} 6. O-O {[%clk 0:02:59]} 6... c5 {[%clk
0:02:54.3]} 7. d4 {[%clk 0:02:58.9]} 7... Nbd7 {[%clk 0:02:53.5]} 8. h3 {[%clk
0:02:56.7]} 8... Rb8 {[%clk 0:02:52.8]} 9. dxc5 {[%clk 0:02:54.7]} 9... Nxc5
{[%clk 0:02:52.2]} 10. Be3 {[%clk 0:02:54.7]} 10... b6 {[%clk 0:02:51.8]} 11.
Nf4 {[%clk 0:02:18.5]} 11... Bb7 {[%clk 0:02:46.7]} 12. Nfd5 {[%clk 0:02:12.1]}
12... e6 {[%clk 0:02:44.1]} 13. Nxf6+ {[%clk 0:02:07.6]} 13... Bxf6 {[%clk
0:02:43.9]} 14. Bd4 {[%clk 0:02:05.8]} 14... Bxd4 {[%clk 0:02:37.6]} 15. Qxd4
{[%clk 0:02:05.2]} 15... Qe7 {[%clk 0:02:34.3]} 16. Rad1 {[%clk 0:02:03.4]}
16... Rbd8 {[%clk 0:02:31.5]} 17. Rfe1 {[%clk 0:01:58.2]} 17... e5 {[%clk
0:02:30.4]} 18. Qe3 {[%clk 0:01:57.5]} 18... Ne6 {[%clk 0:02:29.6]} 19. Nd5
{[%clk 0:01:56.2]} 19... Bxd5 {[%clk 0:02:29.1]} 20. exd5 {[%clk 0:01:52.7]}
20... Nc5 {[%clk 0:02:29.1]} 21. b4 {[%clk 0:01:45.4]} 21... Nd7 {[%clk
0:02:28.7]} 22. c4 {[%clk 0:01:45.7]} 22... Rc8 {[%clk 0:02:28.6]} 23. Rc1
{[%clk 0:01:42.7]} 23... a5 {[%clk 0:02:25.8]} 24. a3 {[%clk 0:01:42.1]} 24...
axb4 {[%clk 0:02:25.8]} 25. axb4 {[%clk 0:01:43]} 25... f5 {[%clk 0:02:23]} 26.
f4 {[%clk 0:01:40.7]} 26... Rc7 {[%clk 0:02:16]} 27. fxe5 {[%clk 0:01:38.8]}
27... Qxe5 {[%clk 0:02:13.8]} 28. Qd3 {[%clk 0:01:24.4]} 28... Qb2 {[%clk
0:02:08.8]} 29. Rb1 {[%clk 0:01:22.2]} 29... Qg7 {[%clk 0:01:57.6]} 30. Re6
{[%clk 0:01:01.4]} 30... Ne5 {[%clk 0:01:57.2]} 31. Qe2 {[%clk 0:00:51.9]} 31...
Nxc4 {[%clk 0:01:57.2]} 32. Re1 {[%clk 0:00:39]} 32... Qd4+ {[%clk 0:01:46.5]}
33. Kh1 {[%clk 0:00:39]} 33... f4 {[%clk 0:01:46.1]} 34. Re8 {[%clk 0:00:36.1]}
34... Ne5 {[%clk 0:01:34.6]} 35. Rxf8+ {[%clk 0:00:34.4]} 35... Kxf8 {[%clk
0:01:34.8]} 36. gxf4 {[%clk 0:00:35.1]} 36... Nd3 {[%clk 0:01:27.4]} 37. Qe8+
{[%clk 0:00:33.6]} 37... Kg7 {[%clk 0:01:26.8]} 38. Re7+ {[%clk 0:00:32.1]}
38... Rxe7 {[%clk 0:01:11.3]} 39. Qxe7+ {[%clk 0:00:33]} 39... Kh6 {[%clk
0:01:09.1]} 40. Qg5+ {[%clk 0:00:33.5]} 40... Kg7 {[%clk 0:01:09.2]} 41. Qe7+
{[%clk 0:00:34.4]} 41... Kh6 {[%clk 0:01:09.4]} 42. Qxd6 {[%clk 0:00:34.9]}
42... Nxf4 {[%clk 0:01:04.4]} 43. Qf8+ {[%clk 0:00:32.5]} 43... Kh5 {[%clk
0:00:59.7]} 44. Bf3+ {[%clk 0:00:31.1]} 44... Kh4 {[%clk 0:00:59.8]} 45. Qh6+
{[%clk 0:00:18.4]} 45... Kg3 {[%clk 0:00:59.4]} 0-1

[Event "*** Titled Tuesday Blitz"]
[Site "Chess.com"]
[Date "2020.12.01"]
[Round "9"]
[White "kinga2008"]
[Black "ljuks68"]
[Result "1-0"]
[WhiteElo "2208"]
[BlackElo "2366"]
[TimeControl "180+1"]
[EndTime "11:43:17 PST"]
[Termination "kinga2008 won on time"]

1. e4 {[%clk 0:02:55.4]} 1... e6 {[%clk 0:02:58.9]} 2. d4 {[%clk 0:02:52.5]}
2... d5 {[%clk 0:02:57.1]} 3. exd5 {[%clk 0:02:45.9]} 3... exd5 {[%clk
0:02:55.4]} 4. Nf3 {[%clk 0:02:44.6]} 4... Nf6 {[%clk 0:02:54.2]} 5. Bd3 {[%clk
0:02:43.8]} 5... c5 {[%clk 0:02:48.3]} 6. O-O {[%clk 0:02:42.5]} 6... Nc6 {[%clk
0:02:40.5]} 7. c3 {[%clk 0:02:37.2]} 7... Be7 {[%clk 0:02:38.6]} 8. Bg5 {[%clk
0:02:34.7]} 8... Qb6 {[%clk 0:02:36.8]} 9. b3 {[%clk 0:02:29]} 9... O-O {[%clk
0:02:31.7]} 10. Re1 {[%clk 0:02:17.6]} 10... Bg4 {[%clk 0:02:28.8]} 11. dxc5
{[%clk 0:02:13.9]} 11... Bxc5 {[%clk 0:02:19.4]} 12. Bh4 {[%clk 0:01:57.8]}
12... Rfe8 {[%clk 0:02:01.6]} 13. Nbd2 {[%clk 0:01:51.4]} 13... Ne5 {[%clk
0:01:42]} 14. Be2 {[%clk 0:01:44.8]} 14... Bf5 {[%clk 0:01:41.5]} 15. Nxe5
{[%clk 0:01:37.1]} 15... Rxe5 {[%clk 0:01:40.7]} 16. b4 {[%clk 0:01:33.9]} 16...
Bf8 {[%clk 0:01:28.6]} 17. Bxf6 {[%clk 0:01:23.2]} 17... Qxf6 {[%clk 0:01:27]}
18. Nf3 {[%clk 0:01:22.4]} 18... Ree8 {[%clk 0:01:17.1]} 19. Qxd5 {[%clk
0:01:18.5]} 19... Rad8 {[%clk 0:01:05]} 20. Qb3 {[%clk 0:01:11.8]} 20... Be4
{[%clk 0:00:29.9]} 21. Nd4 {[%clk 0:00:59.8]} 21... Bd6 {[%clk 0:00:20.7]} 22.
g3 {[%clk 0:00:46.9]} 22... Be5 {[%clk 0:00:17.4]} 23. Bb5 {[%clk 0:00:18.7]}
23... Bxd4 {[%clk 0:00:04.7]} 24. cxd4 {[%clk 0:00:17.4]} 1-0

[Event "*** Titled Tuesday Blitz"]
[Site "Chess.com"]
[Date "2020.12.01"]
[Round "9"]
[White "Kaslask"]
[Black "picturesquecheck"]
[Result "0-1"]
[WhiteElo "2318"]
[BlackElo "2173"]
[TimeControl "180+1"]
[EndTime "11:43:18 PST"]
[Termination "picturesquecheck won by checkmate"]

1. d4 {[%clk 0:03:00.9]} 1... Nf6 {[%clk 0:02:53]} 2. c4 {[%clk 0:03:00.2]} 2...
e6 {[%clk 0:02:53]} 3. Nc3 {[%clk 0:02:59.5]} 3... Bb4 {[%clk 0:02:52.6]} 4. e3
{[%clk 0:02:59.1]} 4... O-O {[%clk 0:02:52]} 5. Bd3 {[%clk 0:02:58.4]} 5... d5
{[%clk 0:02:51.8]} 6. a3 {[%clk 0:02:57.2]} 6... Bxc3+ {[%clk 0:02:49.9]} 7.
bxc3 {[%clk 0:02:56.1]} 7... c5 {[%clk 0:02:50.8]} 8. Ne2 {[%clk 0:02:55.1]}
8... cxd4 {[%clk 0:02:48.2]} 9. cxd4 {[%clk 0:02:49.4]} 9... dxc4 {[%clk
0:02:48.5]} 10. Bxc4 {[%clk 0:02:48.1]} 10... b6 {[%clk 0:02:49.4]} 11. O-O
{[%clk 0:02:44.6]} 11... Bb7 {[%clk 0:02:48.8]} 12. Bb2 {[%clk 0:02:43.4]} 12...
Nbd7 {[%clk 0:02:44.4]} 13. Ng3 {[%clk 0:02:39.9]} 13... Rc8 {[%clk 0:02:42.1]}
14. Bd3 {[%clk 0:02:38.9]} 14... a6 {[%clk 0:02:37.1]} 15. e4 {[%clk 0:02:38.4]}
15... b5 {[%clk 0:02:35.6]} 16. e5 {[%clk 0:02:21.3]} 16... Nd5 {[%clk
0:02:33.2]} 17. Qh5 {[%clk 0:02:20.2]} 17... g6 {[%clk 0:02:32.2]} 18. Qh6
{[%clk 0:02:19]} 18... f5 {[%clk 0:02:25.5]} 19. exf6 {[%clk 0:02:17.7]} 19...
Qxf6 {[%clk 0:02:16.9]} 20. Rae1 {[%clk 0:02:15.7]} 20... Nf4 {[%clk 0:01:28]}
21. Be4 {[%clk 0:02:03.9]} 21... Bd5 {[%clk 0:01:25.7]} 22. Re3 {[%clk
0:01:56.7]} 22... Rfe8 {[%clk 0:01:03.7]} 23. Rf3 {[%clk 0:01:54.1]} 23... Rf8
{[%clk 0:00:55.3]} 24. Re1 {[%clk 0:01:50.7]} 24... Nb6 {[%clk 0:00:34.2]} 25.
Nh5 {[%clk 0:01:47]} 25... Nxh5 {[%clk 0:00:16.3]} 26. Rxf6 {[%clk 0:01:44.8]}
26... Nxf6 {[%clk 0:00:16.4]} 27. Bxg6 {[%clk 0:01:38.2]} 27... hxg6 {[%clk
0:00:15.9]} 28. Qxg6+ {[%clk 0:01:37.7]} 28... Kh8 {[%clk 0:00:16.8]} 29. Re3
{[%clk 0:01:36.8]} 29... Rc7 {[%clk 0:00:15.1]} 30. Rg3 {[%clk 0:01:26.6]} 30...
Rh7 {[%clk 0:00:11.5]} 31. h3 {[%clk 0:01:24.1]} 31... Ne4 {[%clk 0:00:10.2]}
32. Rf3 {[%clk 0:01:18.9]} 32... Rxf3 {[%clk 0:00:06.8]} 33. gxf3 {[%clk
0:01:18.4]} 33... Nd2 {[%clk 0:00:07.1]} 34. Qf6+ {[%clk 0:01:14]} 34... Kg8
{[%clk 0:00:06.3]} 35. Qd8+ {[%clk 0:01:10.6]} 35... Kg7 {[%clk 0:00:06.6]} 36.
Qxb6 {[%clk 0:01:09.7]} 36... Nxf3+ {[%clk 0:00:06.7]} 37. Kf1 {[%clk
0:01:09.2]} 37... Rxh3 {[%clk 0:00:06.8]} 38. Ke2 {[%clk 0:01:07.6]} 38... Rh1
{[%clk 0:00:06.5]} 39. Ke3 {[%clk 0:01:00.9]} 39... Re1+ {[%clk 0:00:06]} 40.
Kf4 {[%clk 0:01:01]} 40... Nd2 {[%clk 0:00:04]} 41. Bc3 {[%clk 0:00:59]} 41...
Re4+ {[%clk 0:00:03.7]} 42. Kg5 {[%clk 0:00:58.3]} 42... Nf3+ {[%clk 0:00:03.8]}
43. Kh5 {[%clk 0:00:54.3]} 43... Rh4# {[%clk 0:00:04.7]} 0-1